bitfinex-derivatives/quotes_ETHF0:USTF0_20251107
["timestamp","ask_amount","ask_price","bid_price","bid_amount"]
[1762521897813,0.00428171,3237.3,3237.2,0.3904]
[1762521898224,0.00428171,3237.3,3237.0,0.2378]
[1762521898522,0.50505171,3237.3,3237.0,0.2378]
[1762521899018,0.5008,3237.2,3237.0,0.73862]
[1762521899214,0.50506171,3237.3,3237.0,0.73862]
[1762521899419,0.50079,3237.2,3237.0,0.73862]
[1762521899622,0.00428171,3237.3,3237.2,0.89119]
[1762521900318,0.00463012,3237.6,3237.5,1.11814]
[1762521900509,3.2078,3238.6,3237.5,3.8252]
[1762521900715,3.2078,3238.6,3238.5,0.6174]
[1762521901015,0.50065,3238.1,3238.0,0.2303]
[1762521901219,3.2078,3238.2,3237.5,0.2303]
[1762521901425,3.2078,3238.2,3237.5,0.2339124]
[1762521901726,3.21243012,3238.2,3237.5,0.23854252]
[1762521901914,3.21243012,3238.2,3237.5,0.00824252]
[1762521901915,0.71703,3237.6,3237.5,0.00824252]
[1762521902110,0.71703,3237.6,3237.5,4.252e-05]
[1762521902315,0.71703,3237.6,3236.6,3.2078]
[1762521902316,0.50086,3236.7,3236.5,0.2303]
[1762521902521,0.50088,3236.6,3236.5,0.2303]
[1762521902825,3.2078,3236.8,3236.0,0.2303]
[1762521903018,0.50096,3236.1,3236.0,0.2303]
[1762521903215,0.00224812,3236.1,3236.0,1.12198437]
[1762521903517,4.812e-05,3236.1,3236.0,4.32978437]
[1762521904017,4.812e-05,3236.1,3236.0,3.82881437]
[1762521904721,4.812e-05,3236.1,3236.0,3.44171437]
[1762521905313,4.812e-05,3236.1,3236.0,0.23391437]
[1762521906923,4.812e-05,3236.1,3236.0,1.12198437]
[1762521907119,4.812e-05,3236.1,3236.0,9.12198437]
[1762521907423,4.812e-05,3236.1,3236.0,13.96470495]
[1762521907620,4.812e-05,3236.1,3236.0,20.14470495]
[1762521907819,4.812e-05,3236.1,3236.0,2.75690495]
[1762521908118,4.812e-05,3236.1,3236.0,1.12198437]
[1762521908716,4.812e-05,3236.1,3236.0,4.32978437]
[1762521908918,4.812e-05,3236.1,3236.0,3.82881437]
[1762521909115,4.812e-05,3236.1,3236.0,0.23391437]
[1762521909322,4.812e-05,3236.1,3236.0,4.32979437]
[1762521909517,4.812e-05,3236.1,3236.0,13.96471495]
[1762521909726,4.812e-05,3236.1,3236.0,5.96471495]
[1762521910122,4.812e-05,3236.1,3236.0,20.14471495]
[1762521910423,4.812e-05,3236.1,3236.0,12.32979437]
[1762521910627,4.812e-05,3236.1,3236.0,28.27779437]
[1762521910820,4.812e-05,3236.1,3236.0,14.09779437]
[1762521911720,0.50084,3236.9,3236.8,0.3871]
[1762521911915,0.50086,3236.8,3236.5,9.768]
[1762521912116,3.2078,3237.1,3236.5,9.768]
[1762521912325,3.2078,3237.1,3236.5,10.2689]
[1762521912726,3.21468865,3237.1,3236.5,10.2689]
[1762521912916,0.50083,3237.0,3236.5,9.768]
[1762521913120,3.21468865,3237.1,3236.5,9.768]
[1762521913321,3.21468865,3237.1,3236.4,3.4381]
[1762521913517,0.50085,3236.9,3236.6,0.50089]
[1762521914024,0.50084,3236.9,3236.4,13.2051]
[1762521914221,0.50086,3236.8,3236.5,0.5009]
[1762521914427,0.50087,3236.7,3236.4,0.73122]
[1762521914729,0.50089,3236.6,3236.4,0.2303]
[1762521915227,0.5009,3236.5,3236.4,0.2303]
[1762521915624,3.2078,3236.7,3236.0,0.23391437]
[1762521915824,0.71596,3236.1,3236.0,0.00361437]
[1762521916220,3.2078,3236.3,3236.1,0.50096]
[1762521916421,3.2078,3236.7,3236.6,0.50089]
[1762521916730,3.21468865,3237.1,3236.4,3.4381]
[1762521916921,0.50086,3236.9,3236.6,0.50087]
[1762521917122,3.21468865,3237.1,3236.4,9.9953]
[1762521917332,3.21468865,3237.1,3236.1,11.39957442]
[1762521917333,0.50089,3236.6,3236.1,11.39957442]
[1762521917532,0.50091,3236.5,3236.3,0.50093]
[1762521917723,0.50089,3236.6,3236.4,0.2303]
[1762521917924,3.70867,3236.7,3236.4,0.73121]
[1762521918229,0.5009,3236.6,3236.4,0.2303]
[1762521918427,0.5009,3236.5,3236.4,0.2303]
[1762521918637,0.50096,3236.1,3236.0,0.00361437]
[1762521918930,3.2078,3236.7,3236.0,0.00361437]
[1762521919131,0.50095,3236.2,3236.0,0.50459437]
[1762521919335,0.50096,3236.1,3236.0,0.00361437]
[1762521920033,0.50095,3236.2,3236.0,0.00361437]
[1762521920232,0.50097,3236.1,3236.0,0.00361437]
[1762521920741,3.2078,3236.3,3236.0,0.00361437]
[1762521921033,0.50093,3236.5,3236.4,0.2303]
[1762521921336,3.2078,3236.7,3236.6,0.888]
[1762521922135,3.70868,3236.7,3236.4,0.2303]
[1762521922333,3.70868,3236.7,3236.0,0.00361437]
[1762521922334,0.50096,3236.2,3236.1,1.63457442]
[1762521922532,0.50096,3236.2,3236.0,10.26760437]
[1762521922533,0.50096,3236.2,3236.0,11.90217879]
[1762521922734,3.2078,3236.7,3236.0,11.90217879]
[1762521922735,0.50097,3236.1,3236.0,11.90217879]
[1762521922930,0.50097,3236.1,3236.0,0.00361437]
[1762521923137,0.71597,3236.1,3236.0,0.00361437]
[1762521923929,8.71597,3236.1,3236.0,0.00361437]
[1762521925931,0.71597,3236.1,3236.0,0.00361437]
[1762521927933,0.215,3236.1,3236.0,0.00361437]
[1762521928234,0.71597,3236.1,3236.0,0.00361437]
[1762521928426,0.50096,3236.3,3236.0,0.50459437]
[1762521928627,0.50097,3236.1,3236.0,0.00361437]
[1762521929131,0.71597,3236.1,3236.0,0.00361437]
[1762521932942,0.50097,3236.1,3236.0,0.20841437]
[1762521934538,3.2078,3236.7,3236.2,0.83416]
[1762521934741,0.5009,3236.6,3236.5,0.2048]
[1762521935136,0.50093,3236.4,3236.1,0.50097]
[1762521935339,3.2078,3236.7,3236.1,0.50097]
[1762521935539,0.50093,3236.4,3236.1,0.50097]
[1762521935740,3.2078,3236.7,3236.0,1.84298879]
[1762521935741,0.60187,3236.1,3236.0,0.00361437]
[1762521935945,3.80967,3236.1,3236.0,0.00361437]
[1762521938348,3.70877,3236.1,3236.0,0.20841437]
[1762521940053,3.80967,3236.1,3236.0,0.20841437]
[1762521940254,3.80967,3236.1,3236.0,0.00361437]
[1762521940547,3.2078,3236.1,3236.0,0.55441437]
[1762521940752,3.2078,3236.1,3236.0,0.70330437]
[1762521941155,3.2078,3236.1,3236.0,1.05540437]
[1762521941453,3.70877,3236.1,3236.0,0.55441437]
[1762521942151,3.2078,3236.1,3236.0,1.05540437]
[1762521942347,3.70877,3236.1,3236.0,1.05540437]
[1762521943057,3.2078,3236.1,3236.0,1.05540437]
[1762521943245,3.70877,3236.1,3236.0,1.05540437]
[1762521944260,0.50097,3236.1,3236.0,0.55441437]
[1762521944757,3.2078,3236.5,3236.1,0.50093]
[1762521944960,0.50092,3236.3,3236.1,0.50093]
[1762521945156,3.2078,3236.5,3236.0,0.20231437]
[1762521945360,0.50086,3236.7,3236.5,0.1987]
[1762521945662,0.56146,3236.6,3236.5,0.1987]
[1762521946259,0.00688865,3237.1,3237.0,0.1987]
[1762521946466,3.2078,3237.7,3237.2,0.3521]
[1762521946662,3.70843,3238.1,3238.0,0.1987]
[1762521946859,0.5006,3238.3,3238.0,0.1987]
[1762521947068,3.2078,3238.6,3238.0,0.69934]
[1762521947269,0.5006,3238.3,3238.0,0.69934]
[1762521947569,0.50063,3238.1,3238.0,0.1987]
[1762521947760,0.56123,3238.1,3238.0,0.1987]
[1762521948164,0.50061,3238.2,3238.0,0.1987]
[1762521948361,0.003575,3238.3,3238.0,0.1987]
[1762521948567,0.003575,3238.3,3238.2,0.3521]
[1762521948764,0.003575,3238.3,3238.2,4.06051]
[1762521949057,0.003575,3238.3,3238.0,0.1987]
[1762521949262,0.50064,3238.0,3237.8,0.00463012]
[1762521949666,0.50063,3238.1,3237.8,0.50530012]
[1762521949864,0.50061,3238.2,3238.0,0.1987]
[1762521950369,0.003575,3238.3,3238.0,0.1987]
[1762521950568,0.003575,3238.3,3238.1,0.50063]
[1762521950762,0.504175,3238.3,3238.2,0.3521]
[1762521950960,0.003575,3238.3,3238.2,0.3521]
[1762521951468,0.003575,3238.3,3238.2,0.85271]
[1762521953059,0.00463012,3238.5,3238.4,0.85268]
[1762521953570,0.50043,3239.4,3239.0,1.05129]
[1762521953765,3.2078,3239.6,3239.0,1.05129]
[1762521953968,3.2078,3239.6,3239.0,0.55333362]
[1762521953969,0.50046,3239.2,3239.0,0.55333362]
[1762521954566,0.0652,3239.1,3239.0,0.00253362]
[1762521954967,0.50054,3238.7,3238.5,0.1987]
[1762521955177,0.50053,3238.8,3238.5,0.1987]
[1762521955378,3.2078,3239.2,3238.5,0.1987]
[1762521955772,0.50054,3238.7,3238.5,0.1987]
[1762521955965,0.50052,3238.8,3238.5,0.20122578]
[1762521956168,0.50054,3238.7,3238.5,3.40902578]
[1762521956874,0.50055,3238.6,3238.5,3.40902578]
[1762521957069,3.2078,3239.2,3238.5,0.20122578]
[1762521957279,0.50055,3238.6,3238.5,0.20122578]
[1762521957782,0.50055,3238.7,3238.5,0.20122578]
[1762521958080,0.50055,3238.6,3238.5,0.55332578]
[1762521958478,0.50055,3238.6,3238.5,0.20122578]
[1762521959683,3.2078,3239.2,3238.5,0.20122578]
[1762521959875,0.50054,3238.7,3238.5,0.20122578]
[1762521960382,0.50055,3238.6,3238.5,0.20122578]
[1762521960680,0.56325,3238.6,3238.5,0.20122578]
[1762521960976,0.56325,3238.6,3237.0,0.1987]
[1762521960977,3.2078,3238.8,3237.3,3.2078]
[1762521961172,3.2078,3238.8,3238.1,0.50062]
[1762521961372,3.2078,3238.4,3237.8,0.00463012]
[1762521961576,0.5007,3237.6,3237.0,3.4065]
[1762521961776,3.2078,3238.0,3237.0,3.4065]
[1762521961777,3.2078,3238.0,3237.5,0.00258391]
[1762521961984,0.5007,3237.6,3237.5,0.00258391]
[1762521962384,3.2078,3238.0,3237.5,0.20038391]
[1762521962577,0.5007,3237.6,3237.5,0.20038391]
[1762521964172,0.5007,3237.6,3237.5,0.52608391]
[1762521964379,0.5007,3237.6,3237.5,0.20038391]
[1762521964580,3.2078,3238.4,3237.5,0.20038391]
[1762521964776,0.50071,3237.6,3237.5,0.20038391]
[1762521965183,0.50071,3237.6,3237.5,0.00258391]
[1762521965991,3.2078,3238.4,3237.7,0.82638]
[1762521966285,3.2078,3238.4,3237.8,0.3257]
[1762521966474,0.50066,3237.9,3237.8,0.3257]
[1762521966681,0.50064,3238.1,3238.0,0.1978]
[1762521967483,0.50063,3238.1,3238.0,0.1978]
[1762521967677,3.2078,3238.4,3238.0,1.02414]
[1762521967883,0.5006,3238.3,3238.2,0.3257]
[1762521968690,0.50062,3238.2,3238.0,0.1978]
[1762521969082,0.50063,3238.1,3238.0,0.1978]
[1762521969483,0.50062,3238.2,3238.0,0.1978]
[1762521969992,0.50059,3238.4,3238.2,0.50061]
[1762521970283,0.50059,3238.4,3238.3,0.3257]
[1762521970683,0.50056,3238.6,3238.0,0.1978]
[1762521970889,0.50061,3238.3,3238.0,0.69844]
[1762521971203,3.2078,3238.8,3238.0,0.1978]
[1762521971384,0.50062,3238.2,3238.0,0.69844]
[1762521971688,0.50063,3238.1,3238.0,0.1978]
[1762521972385,0.50061,3238.3,3238.0,0.69843]
[1762521972590,3.2078,3238.8,3238.2,0.5006]
[1762521972786,0.50047,3239.1,3239.0,0.1978]
[1762521973089,0.00463012,3239.4,3239.3,0.82614]
[1762521973392,0.00463012,3239.4,3239.3,0.3257]
[1762521973690,0.00463012,3239.4,3239.3,0.82614]
[1762521975288,0.50506012,3239.4,3239.0,3.41023012]
[1762521975491,0.00463012,3239.4,3239.2,0.50045]
[1762521975995,0.00463012,3239.4,3239.3,0.50044]
[1762521976188,0.00463012,3239.4,3239.3,0.82614]
[1762521978290,0.00463012,3239.4,3239.3,0.3257]
[1762521978793,0.00463012,3239.4,3239.3,0.82614]
[1762521980594,0.50506012,3239.4,3239.3,0.3257]
[1762521980795,0.50506012,3239.4,3239.2,0.50046]
[1762521981098,0.50506012,3239.4,3239.0,3.41023012]
[1762521981099,0.00463012,3239.4,3239.3,0.82614]
[1762521981501,0.00463012,3239.4,3239.0,3.41023012]
[1762521981502,7.57504,3240.6,3240.5,0.1978]
[1762521981798,0.50024,3240.6,3240.5,0.1978]
[1762521981995,3.2078,3241.0,3240.5,0.5235]
[1762521982198,0.50018,3241.1,3241.0,0.1978]
[1762521982594,0.5035203,3241.1,3241.0,0.20013182]
[1762521982898,0.5035103,3241.1,3241.0,0.52583182]
[1762521983197,0.5035103,3241.1,3240.5,0.1978]
[1762521983198,0.50114,3240.6,3240.5,0.1978]
[1762521983399,0.50032,3240.1,3239.8,3.2078]
[1762521983597,0.50122,3240.1,3239.5,0.1978]
[1762521983801,3.2078,3240.2,3239.5,1.02391]
[1762521984002,0.50032,3240.1,3240.0,0.1978]
[1762521984307,0.50032,3240.1,3240.0,0.20031518]
[1762521984803,0.50122,3240.1,3240.0,0.20031518]
[1762521985109,0.50032,3240.1,3240.0,0.20031518]
[1762521985403,3.2078,3240.2,3240.0,0.20031518]
[1762521985795,0.50032,3240.1,3240.0,0.20031518]
[1762521986196,3.70811,3240.2,3240.0,0.20031518]
[1762521986395,3.2078,3240.2,3240.1,0.3257]
[1762521986592,0.5003,3240.2,3240.1,0.3257]
[1762521986908,3.2078,3240.8,3240.4,0.3257]
[1762521987098,0.0033403,3241.1,3241.0,0.1978]
[1762521987099,0.5035103,3241.1,3241.0,0.1978]
[1762521988195,0.5035103,3241.1,3241.0,0.5235]
[1762521989107,0.5035103,3241.1,3241.0,0.1978]
[1762521992198,0.5035103,3241.1,3241.0,0.4729]
[1762521992407,0.5035103,3241.1,3241.0,0.1978]
[1762521993710,0.50032,3240.1,3240.0,0.20031518]
[1762521994006,0.50029,3240.4,3240.3,0.2751]
[1762521994405,0.50032,3240.1,3240.0,0.20031518]
[1762521995497,0.50032,3240.1,3240.0,0.00251518]
[1762521995697,0.50032,3240.1,3240.0,0.17751518]
[1762521996005,3.2078,3240.7,3240.0,0.17751518]
[1762521996006,0.50024,3240.6,3240.5,0.175]
[1762521996408,0.50032,3240.1,3240.0,0.17751518]
[1762521997114,0.50029,3240.3,3240.0,0.45261518]
[1762521997313,0.50031,3240.2,3240.0,0.45261518]
[1762521997515,0.50032,3240.1,3240.0,0.45261518]
[1762521998514,3.2078,3240.7,3240.0,0.45261518]
[1762521998715,3.2078,3240.3,3240.0,0.45261518]
[1762521998908,0.5003,3240.2,3240.0,0.95294518]
[1762521999109,0.5003,3240.2,3240.1,0.2751]
[1762521999511,0.50032,3240.1,3240.0,0.00251518]
[1762521999816,0.50032,3240.1,3240.0,0.16711518]
[1762522000408,0.50032,3240.1,3240.0,0.44801518]
[1762522001015,3.2078,3240.7,3240.0,0.44801518]
[1762522001612,0.50032,3240.1,3240.0,0.44801518]
[1762522003609,2.19287857,3242.1,3241.1,0.2809]
[1762522003815,1.10682004,3243.0,3242.0,3.2078]
[1762522004014,0.1627,3243.5,3243.4,0.49981]
[1762522004208,0.66243,3244.0,3243.4,13.4656]
[1762522004413,1.10689775,3243.9,3243.6,1.62426231]
[1762522004618,1.10964071,3243.9,3243.6,1.62658142]
[1762522004817,0.00274296,3243.9,3243.7,1.62426231]
[1762522005109,0.00274296,3243.9,3243.8,12.9718]
[1762522005313,0.1627,3244.5,3243.8,19.1374]
[1762522005516,0.1627,3244.5,3244.4,0.80732017]
[1762522006219,0.16637269,3244.5,3244.2,0.80732017]
[1762522006515,0.1627,3246.0,3244.8,0.49958]
[1762522006719,3.2078,3245.8,3244.9,14.0422477]
[1762522006921,3.2078,3245.8,3245.1,0.8051167]
[1762522007120,0.4995,3245.5,3245.2,9.761]
[1762522007315,0.16572425,3245.4,3244.9,4.0129167]
[1762522007514,0.1627,3246.0,3245.3,3.2078]
[1762522007818,1.10689775,3245.9,3245.4,9.774]
[1762522008014,0.2887,3245.6,3245.5,9.775]
[1762522008414,0.4995,3245.5,3245.4,9.775]
[1762522008614,6.02589631,3245.5,3245.4,9.775]
[1762522008814,6.02589631,3245.5,3245.3,0.00462235]
[1762522009117,1.39559775,3245.4,3245.3,9.77662235]
[1762522009315,5.81254766,3245.4,3245.3,0.00462235]
[1762522011326,5.97524766,3245.4,3245.3,0.00462235]
[1762522013518,0.1627,3244.2,3243.9,3.2078]
[1762522013823,0.1627,3244.2,3244.0,10.10671]
[1762522014024,4.41694991,3244.1,3244.0,10.10671]
[1762522014324,0.00462235,3244.4,3244.2,0.49969]
[1762522014530,2.235e-05,3244.4,3244.3,3.2078]
[1762522014828,2.235e-05,3244.4,3244.3,9.3726]
[1762522016626,2.235e-05,3244.4,3244.3,3.2078]
[1762522016816,2.235e-05,3244.4,3244.3,12.9498]
[1762522017021,2.235e-05,3244.4,3244.3,13.43947]
[1762522018620,2.235e-05,3244.4,3244.3,19.60427]
[1762522018820,2.235e-05,3244.4,3244.3,3.70747]
[1762522019026,0.1627,3245.4,3244.3,20.9278]
[1762522019218,0.49955,3245.1,3245.0,0.49955]
[1762522019422,0.49955,3245.1,3245.0,10.22355]
[1762522019931,0.66221,3245.4,3245.0,9.724]
[1762522020131,4.91646991,3245.3,3245.2,0.49952]
[1762522020326,3.3705,3246.0,3245.2,3.2078]
[1762522020327,0.50204865,3245.5,3245.2,3.2078]
[1762522020828,0.50203865,3245.5,3245.4,0.4995]
[1762522021033,0.49951,3245.4,3245.2,3.2078]
[1762522021226,0.49951,3245.4,3245.3,10.22252]
[1762522021422,0.49959,3244.9,3244.8,3.2078]
[1762522021626,0.49959,3244.9,3244.8,13.4284]
[1762522021928,0.3077,3245.4,3244.8,12.9288]
[1762522022223,0.00254865,3245.5,3245.4,0.4995]
[1762522022429,0.00254865,3245.5,3245.4,10.2215]
[1762522022626,0.00254865,3245.5,3245.4,10.2265]
[1762522022829,0.00254865,3245.5,3245.4,16.3889]
[1762522023229,0.49938,3246.2,3246.0,0.4994]
[1762522023427,0.49938,3246.2,3246.1,9.725]
[1762522023622,0.4994,3246.1,3245.9,3.70722]
[1762522023834,0.3077,3246.0,3245.9,3.2078]
[1762522024126,5.83154766,3246.0,3245.9,13.42423]
[1762522024332,5.8348911,3246.0,3245.9,13.42802188]
[1762522024726,5.22740335,3246.0,3245.9,3.21159188]
[1762522025032,10.0440011,3246.0,3245.9,0.00379188]
[1762522025228,10.0440011,3246.0,3245.9,4.66179188]
[1762522025626,10.0440011,3246.0,3245.9,0.00379188]
[1762522025829,1.00133,3245.9,3245.8,0.00462235]
[1762522026029,2.10822775,3245.9,3245.8,0.00462235]
[1762522026235,1.10689775,3245.9,3245.8,0.00462235]
[1762522026426,1.60632775,3245.9,3245.8,0.00462235]
[1762522026730,1.10689775,3245.9,3245.8,4.51379083]
[1762522027029,0.00334344,3246.0,3245.9,0.49943]
[1762522028033,0.66202,3246.6,3245.9,0.49943]
[1762522028034,0.3077,3246.6,3245.9,14.1616]
[1762522028237,1.10689775,3246.5,3246.0,10.46031843]
[1762522028428,1.10689775,3246.5,3245.8,4.02026753]
[1762522028429,0.3077,3246.0,3245.8,1.25110926]
[1762522028728,0.8096,3246.0,3245.9,9.716]
[1762522028928,1.10689775,3245.9,3245.8,0.00735083]
[1762522029129,1.11045337,3245.9,3245.8,10.10272126]
[1762522029326,10.11178337,3245.9,3245.8,0.38872126]
[1762522029522,2.11178337,3245.9,3245.8,0.38872126]
[1762522030434,10.11178337,3245.9,3245.8,0.38872126]
[1762522030639,0.5019,3245.2,3245.1,8.699]
[1762522030830,0.5019,3245.2,3245.1,9.44727745]
[1762522031136,4.01502,3245.4,3245.1,9.94682745]
[1762522031340,0.3077,3245.4,3245.2,0.74827745]
[1762522031537,0.3077,3245.4,3245.2,0.49953]
[1762522031740,0.3077,3245.4,3245.2,0.50185934]
[1762522031939,0.8072,3245.4,3245.2,0.00232934]
[1762522032337,0.3077,3245.4,3245.3,1.0734477]
[1762522032527,4.5169,3245.4,3245.3,1.0734477]
[1762522032733,4.01502,3245.4,3245.2,1.07577704]
[1762522033034,4.01502,3245.4,3245.3,10.7764477]
[1762522033233,1.00142,3245.3,3245.2,11.85765391]
[1762522033436,9.00142,3245.3,3245.1,2.07246982]
[1762522033738,0.3077,3244.8,3244.0,2.71887682]
[1762522033938,0.49965,3244.5,3244.1,0.49969]
[1762522034143,3.5155,3244.8,3244.0,2.71887682]
[1762522034434,0.49961,3244.8,3244.4,0.49965]
[1762522034741,3.2078,3245.2,3244.5,9.707]
[1762522035038,0.49965,3244.5,3244.3,0.00462235]
[1762522035233,3.2078,3245.2,3244.4,9.707]
[1762522035446,0.49958,3244.9,3244.5,0.49964]
[1762522035633,0.4996,3244.8,3244.5,0.49964]
[1762522035832,3.2078,3244.8,3244.4,9.703]
[1762522036029,0.49962,3244.7,3244.3,0.50429235]
[1762522036239,0.49964,3244.5,3244.3,0.00462235]
[1762522036429,0.49964,3244.5,3244.4,9.699]
[1762522036627,0.49962,3244.7,3244.3,0.50429235]
[1762522036841,3.2078,3245.2,3244.4,9.697]
[1762522037031,0.4996,3244.8,3244.4,9.697]
[1762522037242,0.49959,3244.9,3244.4,9.697]
[1762522037441,3.2078,3245.2,3244.5,0.49963]
[1762522037636,1.00145,3245.1,3245.0,1.62231823]
[1762522037842,1.00146,3245.0,3244.9,1.62231823]
[1762522038240,0.49961,3244.7,3244.6,9.693]
[1762522038934,0.49965,3244.5,3244.3,0.00462235]
[1762522039136,0.49963,3244.7,3244.4,9.693]
[1762522039335,3.2078,3244.8,3244.5,9.693]
[1762522039538,0.49963,3244.6,3244.5,9.693]
[1762522039737,0.49966,3244.4,3244.3,0.00462235]
[1762522039944,4.20936,3244.4,3244.3,0.00462235]
[1762522040741,0.8096,3243.6,3243.0,2.71887682]
[1762522040937,3.2078,3243.2,3242.6,13.49585602]
[1762522041136,0.49986,3243.1,3242.7,0.49992]
[1762522041338,3.5155,3243.6,3242.9,0.49988]
[1762522041533,0.49979,3243.5,3243.4,1.08173838]
[1762522041733,1.0042298,3243.5,3243.4,0.00383466]
[1762522041939,0.3077,3243.0,3242.2,2.71887682]
[1762522042133,3.2078,3242.4,3241.7,3.80285602]
[1762522042339,3.2078,3242.8,3242.0,3.2078]
[1762522042539,0.49995,3242.5,3242.3,1.08083558]
[1762522042746,0.50003,3242.1,3241.8,0.50006]
[1762522043044,0.50461235,3242.3,3242.0,3.2078]
[1762522043243,0.50461235,3242.3,3242.2,1.07998278]
[1762522043443,0.00462235,3242.3,3242.2,1.57488278]
[1762522043641,0.00462235,3242.3,3242.2,0.4949]
[1762522044350,1.00651235,3242.3,3242.2,9.701]
[1762522044648,0.00462235,3242.3,3242.2,9.699]
[1762522045144,0.00462235,3242.3,3242.2,10.77882904]
[1762522045341,0.00462235,3242.3,3242.2,10.1939]
[1762522045543,0.49989,3243.0,3242.4,0.3272]
[1762522045746,0.49988,3243.0,3242.6,0.49993]
[1762522046139,3.2078,3243.4,3242.5,4.28529064]
[1762522046342,3.5155,3243.0,3242.5,7.832]
[1762522046543,0.49996,3242.5,3242.2,1.57749064]
[1762522046743,0.49999,3242.3,3242.2,1.07749064]
[1762522046949,0.49999,3242.3,3242.2,10.77349064]
[1762522047150,4.0154,3243.0,3242.4,0.49999]
[1762522047336,0.80761,3243.0,3242.5,3.2078]
[1762522047651,0.80761,3243.0,3242.6,0.49996]
[1762522047652,0.4999,3243.0,3242.6,0.49996]
[1762522048040,0.49991,3243.0,3242.6,0.49996]
[1762522048242,0.49993,3242.8,3242.5,3.2078]
[1762522048437,0.00462235,3243.1,3242.5,3.2078]
[1762522048742,0.00462235,3243.1,3242.6,9.697]
[1762522048947,0.49992,3242.9,3242.6,10.19696]
[1762522049241,0.00462235,3243.1,3242.6,9.697]
[1762522049446,0.49994,3242.8,3242.6,9.697]
[1762522049842,0.49991,3243.0,3242.6,10.19696]
[1762522050041,0.49992,3242.9,3242.6,10.19696]
[1762522050239,0.49993,3242.8,3242.4,4.03498]
[1762522050442,0.00462235,3243.1,3242.6,0.49995]
[1762522050443,0.49991,3243.0,3242.6,0.49995]
[1762522050643,0.49992,3242.9,3242.6,0.49996]
[1762522050846,0.00462235,3243.1,3242.5,9.697]
[1762522051049,0.00462235,3243.1,3242.9,0.49992]
[1762522051242,0.00462235,3243.1,3242.6,0.49995]
[1762522051747,3.6055,3243.0,3242.7,9.697]
[1762522051940,0.00462235,3243.1,3242.7,9.697]
[1762522052343,0.00462235,3243.1,3242.6,0.49995]
[1762522052642,0.49995,3242.7,3242.6,8.079]
[1762522052842,3.6055,3243.0,3242.4,3.2078]
[1762522053040,0.49998,3242.5,3242.4,3.2078]
[1762522053252,0.49998,3242.5,3242.4,10.4488]
[1762522053449,1.16113,3242.2,3242.1,9.698]
[1762522053654,0.50003,3242.2,3242.0,3.70786]
[1762522053847,0.50003,3242.2,3242.0,13.40586]
[1762522054353,0.50001,3242.4,3242.1,0.50004]
[1762522054548,0.49999,3242.5,3242.2,0.50002]
[1762522054750,0.50001,3242.3,3242.1,0.50004]
[1762522055355,0.50001,3242.3,3242.0,13.98329064]
[1762522055356,0.5,3242.4,3242.2,0.50003]
[1762522055653,0.50001,3242.3,3242.2,0.50003]
[1762522055954,0.5,3242.4,3242.2,0.50003]
[1762522056944,3.867,3242.9,3242.8,0.49993]
[1762522057149,0.00462235,3243.1,3243.0,1.1401]
[1762522057345,0.00462235,3243.1,3243.0,4.7299]
[1762522057552,0.00462235,3243.1,3243.0,3.2078]
[1762522057753,1.16561235,3243.1,3243.0,9.698]
[1762522058057,0.49993,3242.9,3242.7,0.49993]
[1762522058255,0.49993,3242.9,3242.8,9.698]
[1762522058748,0.49993,3242.8,3242.7,1.07749064]
[1762522058949,0.49993,3242.8,3242.7,10.19795]
[1762522059647,0.49993,3242.8,3242.7,0.49995]
[1762522059844,0.49995,3242.7,3242.6,3.70776]
[1762522060047,0.49995,3242.7,3242.6,12.9058]
[1762522060456,0.49995,3242.7,3242.6,12.9048]
[1762522060653,0.49995,3242.7,3242.6,3.2078]
[1762522061154,3.5742,3243.0,3242.3,0.50001]
[1762522061352,0.5,3242.4,3242.3,1.1111]
[1762522061654,0.5,3242.4,3242.2,1.07749064]
[1762522062049,0.50001,3242.3,3242.2,1.07749064]
[1762522062752,0.50001,3242.3,3242.1,12.9048]
[1762522062753,3.5742,3243.0,3242.1,14.52793007]
[1762522062954,0.5,3242.4,3242.3,1.08395181]
[1762522063151,0.50001,3242.3,3242.2,1.08395181]
[1762522063459,0.5,3242.4,3242.3,0.50001]
[1762522063757,0.5,3242.4,3242.3,1.58474922]
[1762522063957,0.5,3242.4,3242.3,1.08473922]
[1762522064349,0.5,3242.4,3242.2,2.12316007]
[1762522064555,0.5,3242.4,3242.3,1.08506073]
[1762522065257,0.5,3242.4,3242.2,2.12316007]
[1762522065655,7.4412,3243.0,3242.2,2.12316007]
[1762522065656,0.50001,3242.3,3242.2,2.12316007]
[1762522066056,0.50004,3242.1,3242.0,1.62313007]
[1762522066358,1.14147,3241.9,3241.8,0.00312601]
[1762522066658,1.14147,3241.9,3241.8,1.63303431]
[1762522066854,0.6414,3241.9,3241.8,1.63303431]
[1762522067052,1.14147,3241.9,3241.8,1.63303431]
[1762522067253,0.6414,3241.9,3241.8,1.63303431]
[1762522067558,0.50007,3241.9,3241.8,1.63413288]
[1762522067856,1.14147,3241.9,3241.8,1.63413288]
[1762522068059,1.14147,3241.9,3241.8,0.00312601]
[1762522068060,9.14147,3241.9,3241.8,0.00312601]
[1762522069356,9.14147,3241.9,3241.8,1.09072096]
[1762522069557,1.14147,3241.9,3241.8,1.63413288]
[1762522069858,1.14147,3241.9,3241.8,0.00312601]
[1762522070054,1.14147,3241.9,3241.8,1.63413288]
[1762522071165,9.14147,3241.9,3241.8,0.00312601]
[1762522071457,9.14147,3241.9,3241.8,2.601e-05]
[1762522071666,0.3664,3242.0,3241.0,1.63100687]
[1762522071667,1.14159,3241.1,3241.0,1.63100687]
[1762522071854,1.14159,3241.1,3240.4,9.697]
[1762522071855,1.14162,3240.9,3240.8,1.63100687]
[1762522072054,0.50025,3240.8,3240.5,12.7325772]
[1762522072255,0.50032,3240.3,3240.2,2.1598072]
[1762522072450,3.2078,3240.7,3240.0,10.0735]
[1762522072451,0.50035,3240.1,3240.0,10.0735]
[1762522072656,0.5032241,3240.1,3240.0,0.00284459]
[1762522073152,0.5032241,3240.1,3240.0,1.63970628]